[Event "22nd Hoogeveen Open 2018"]
[Site "Hoogeveen"]
[Date "2018.10.20"]
[Round "1"]
[White "Maters, Arthur"]
[Black "De Boer, Eelke"]
[Result "0-1"]
[ECO "B23"]
[WhiteElo "1933"]
[BlackElo "2285"]
[Annotator "NA"]
[PlyCount "88"]
[EventDate "2018.10.20"]
[EventType "swiss"]
[EventCountry "NED"]
[SourceTitle "playchess.com"]
[Source "ChessBase"]
[SourceQuality "1"]
[TimeControl "40/5400+30:1800+30"]

1. e4 {[%emt 0:00:00]} c5 {[%emt 0:00:00]} 2. Nc3 {[%emt 0:00:00]} d6 {[%emt 0:00:00]} 3. d4 {[%emt 0:00:00]} cxd4 {[%emt 0:00:00] B23: Sizilianisch (Geschlossenes System)} 4. Qxd4 {[%emt 0:00:00]} Nc6 {[%emt 0:00:00]} 5. Qd2 {[%emt 0:00:00]} Nf6 {[%emt 0:00:57]} (5... g6 6. b3 Bh6 7. f4 f5 8. Bb2 Nf6 9. Bd3 Qa5 10. exf5 Bxf5 11. Nge2 Bxd3 12. Qxd3 {1-0 (42) Nakamura,H (2769)-Grischuk,A (2766) Leuven 2018}) 6. b3 {[%emt 0:00:00]} e6 {[%emt 0:04:06]} 7. Bb2 {[%emt 0:00:38]} Be7 {[%emt 0:00:10]} 8. O-O-O {[%emt 0:00:16]} a6 {[%emt 0:02:55]} 9. f3 {[%emt 0:00:50]} b5 {[%emt 0:01:33]} 10. Kb1 {[%emt 0:01:25]} O-O {[%emt 0:10:25]} 11. g4 {[%emt 0:06:12]} Nd7 $146 {[%emt 0:01:32]} 12. h4 {[%emt 0:06:47]} Nc5 {[%emt 0:01:37]} 13. g5 {[%emt 0:05:05]} b4 {[%emt 0:00:38]} 14. Nce2 {[%emt 0:00:33]} a5 {[%emt 0:02:38]} 15. Nd4 {[%emt 0:01:49]} Nxd4 {[%emt 0:05:11]} 16. Bxd4 {[%emt 0:05:37]} e5 {[%emt 0:15:15]} 17. Bxc5 {[%emt 0:03:41]} dxc5 {[%emt 0:00:12]} 18. Qd4 {[%emt 0:00:06]} Qd6 19. Qxd6 {[%emt 0:00:30]} Re8 {[%emt 0:06:37]} 20. Qd8 Rxd8 {[%emt 0:01:01]} 21. Rxd8+ {[%emt 0:02:01]} Bxd8 {[%emt 0:00:16]} 22. Bc4 {[%emt 0:07:33]} Ba6 {[%emt 0:01:01]} 23. Ne2 {[%emt 0:03:08]} Bxc4 {[%emt 0:02:42]} 24. bxc4 {[%emt 0:00:46]} f6 {[%emt 0:00:13]} 25. Rd1 {[%emt 0:05:17]} fxg5 {[%emt 0:03:12]} 26. h5 {[%emt 0:00:06]} Bf6 {[%emt 0:10:23]} 27. Rd5 {[%emt 0:00:37]} Rc8 {[%emt 0:00:17]} 28. Nc1 {[%emt 0:00:20]} g6 {[%emt 0:04:06]} 29. h6 {[%emt 0:01:41]} Be7 {[%emt 0:10:53]} 30. Rxe5 {[%emt 0:02:30]} Bf8 {[%emt 0:01:14]} 31. Nd3 {[%emt 0:05:14]} Bxh6 {[%emt 0:00:19]} 32. Nxc5 {[%emt 0:01:54]} Rf8 {[%emt 0:01:23]} 33. Rd5 {[%emt 0:21:29]} Rxf3 $19 {[%emt 0:00:12]} 34. e5 {[%emt 0:00:11]} g4 {[%emt 0:04:57]} 35. e6 {[%emt 0:00:32]} Re3 {[%emt 0:00:20]} 36. Rd8+ {[%emt 0:01:04]} Kg7 {[%emt 0:00:09]} 37. Rd7+ {[%emt 0:00:47]} Kf8 {[%emt 0:01:16]} 38. Rd8+ {[%emt 0:13:53]} Ke7 {[%emt 0:01:02]} 39. Rd7+ {[%emt 0:00:05]} Kf6 {[%emt 0:02:12]} 40. Rf7+ {[%emt 0:00:34]} Kg5 {[%emt 0:00:07]} 41. Rf1 {[%emt 0:31:33]} g3 {[%emt 0:31:04]} 42. Kc1 {[%emt 0:01:52]} Kg4 {[%emt 0:00:26]} 43. Kd1 {[%emt 0:00:06]} g2 {[%emt 0:00:26]} 44. Rg1 {[%emt 0:00:09]} Kg3 {[%emt 0:00:09]} 0-1

[Event "22nd Hoogeveen Open 2018"]
[Site "Hoogeveen"]
[Date "2018.10.20"]
[Round "1"]
[White "Emans, Job"]
[Black "Hamblok, Roel"]
[Result "0-1"]
[ECO "E11"]
[WhiteElo "1927"]
[BlackElo "2275"]
[Annotator "NA"]
[PlyCount "90"]
[EventDate "2018.10.20"]
[EventType "swiss"]
[EventCountry "NED"]
[SourceTitle "playchess.com"]
[Source "ChessBase"]
[SourceQuality "1"]
[TimeControl "40/5400+30:1800+30"]

1. d4 {[%emt 0:00:00]} Nf6 {[%emt 0:01:06]} 2. c4 {[%emt 0:00:07]} e6 {[%emt 0:00:31]} 3. Nf3 {[%emt 0:00:38]} Bb4+ {[%emt 0:00:54]} 4. Bd2 {[%emt 0:02:01]} Qe7 {[%emt 0:00:08]} 5. g3 {[%emt 0:02:44]} Nc6 {[%emt 0:00:42]} 6. Bg2 {[%emt 0:02:53]} Bxd2+ {[%emt 0:00:15]} 7. Nbxd2 {[%emt 0:01:09]} d6 {[%emt 0:00:10]} 8. e4 {[%emt 0:05:03]} e5 {[%emt 0:00:37]} 9. d5 {[%emt 0:00:29]} Nb8 {[%emt 0:00:11]} 10. O-O {[%emt 0:01:37]} a5 {[%emt 0:00:26]} 11. Rc1 {[%emt 0:04:52] E11: Bogo-Indian} (11. Ne1 O-O 12. Nd3 Bg4 13. Qc2 Be2 14. Rfe1 Bxd3 15. Qxd3 c6 16. h3 Nbd7 17. b3 cxd5 18. exd5 Qd8 19. g4 h6 20. Qe3 Qb6 {1-0 (120) Li,C (2720)-Henriquez Villagra,C (2517) Doha 2016}) 11... Nbd7 $146 {[%emt 0:02:34]} ({Predecessor:} 11... O-O 12. Ne1 Bg4 13. Bf3 Bh3 14. Bg2 Bg4 15. f3 Bd7 16. Nd3 Na6 17. Qe2 Nb4 18. a3 Nxd3 19. Qxd3 {0-1 (70) Varga,P (2390)-Horvath,G (2480) Hungary 1998}) 12. Qc2 {[%emt 0:11:17]} O-O {[%emt 0:01:52]} 13. Ne1 {[%emt 0:00:46]} Nc5 {[%emt 0:00:27]} 14. Nd3 {[%emt 0:00:48]} Nfd7 {[%emt 0:02:06]} 15. f4 {[%emt 0:06:53]} Nxd3 {[%emt 0:02:37]} 16. Qxd3 {[%emt 0:00:08]} Nc5 {[%emt 0:00:10]} 17. Qe3 {[%emt 0:00:29]} Bd7 {[%emt 0:01:47]} 18. Rce1 {[%emt 0:09:28]} f6 {[%emt 0:02:59]} 19. f5 {[%emt 0:05:12]} b5 {[%emt 0:07:27]} 20. b3 {[%emt 0:12:10]} Rfb8 {[%emt 0:01:41]} 21. cxb5 {[%emt 0:03:48]} Bxb5 {[%emt 0:06:04]} 22. Rf3 {[%emt 0:00:18]} Be8 {[%emt 0:01:30]} 23. Qc3 {[%emt 0:01:31]} Rb7 {[%emt 0:06:28]} 24. Nc4 {[%emt 0:02:29]} Rba7 {[%emt 0:02:02]} 25. Bf1 {[%emt 0:00:31]} Qd8 {[%emt 0:00:30]} 26. Rfe3 {[%emt 0:01:16]} Qb8 {[%emt 0:01:30]} 27. Rc1 {[%emt 0:02:20]} Qb4 {[%emt 0:02:47]} 28. Qc2 {[%emt 0:02:06]} Rb8 {[%emt 0:03:11]} 29. a3 $11 {[%emt 0:01:35]} Qb7 {[%emt 0:00:38]} 30. Nxa5 {[%emt 0:01:00]} Rxa5 {[%emt 0:05:52]} 31. b4 {[%emt 0:00:16]} Ba4 {[%emt 0:04:31]} 32. Qc3 {[%emt 0:02:55]} Nb3 {[%emt 0:10:43]} 33. bxa5 {[%emt 0:02:18]} Nxc1 {[%emt 0:00:06]} 34. Qxc1 {[%emt 0:00:47]} Qa7 {[%emt 0:00:19]} 35. a6 {[%emt 0:12:20]} Bb5 {[%emt 0:10:57]} 36. Bxb5 {[%emt 0:00:21]} Rxb5 {[%emt 0:00:06]} 37. Kg2 {[%emt 0:00:51]} Qxa6 {[%emt 0:02:48]} 38. Rc3 {[%emt 0:00:30]} Qa4 {[%emt 0:01:07]} 39. Rxc7 {[%emt 0:02:32]} Qxe4+ {[%emt 0:00:20]} 40. Kg1 {[%emt 0:00:57]} Qxf5 {[%emt 0:08:24]} 41. Rc2 {[%emt 0:15:14]} h5 {[%emt 0:00:45]} 42. Qd1 {[%emt 0:03:48]} e4 {[%emt 0:01:44]} 43. Qe2 {[%emt 0:02:05]} Qxd5 {[%emt 0:03:22]} 44. Rc8+ {[%emt 0:00:32]} Kh7 {[%emt 0:01:19]} 45. Re8 {[%emt 0:00:09]} Qd4+ {[%emt 0:00:33]} 0-1

[Event "22nd Hoogeveen Open 2018"]
[Site "Hoogeveen"]
[Date "2018.10.20"]
[Round "1"]
[White "Bleeker, Kasper"]
[Black "Kokje, Joris"]
[Result "0-1"]
[ECO "B22"]
[WhiteElo "1891"]
[BlackElo "2232"]
[Annotator "NA"]
[PlyCount "134"]
[EventDate "2018.10.20"]
[EventType "swiss"]
[EventCountry "NED"]
[SourceTitle "playchess.com"]
[Source "ChessBase"]
[SourceQuality "1"]
[TimeControl "40/5400+30:1800+30"]

1. e4 {[%emt 0:00:00]} c5 {[%emt 0:00:00]} 2. d4 {[%emt 0:00:00]} cxd4 {[%emt 0:00:00]} 3. c3 {[%emt 0:00:00]} Nf6 {[%emt 0:00:00]} 4. e5 {[%emt 0:00:00]} Nd5 {[%emt 0:00:00]} 5. cxd4 {[%emt 0:00:00]} Nc6 {[%emt 0:00:17]} 6. Nf3 {[%emt 0:00:39]} d6 {[%emt 0:00:12]} 7. Be2 {[%emt 0:01:53]} dxe5 {[%emt 0:07:12]} 8. dxe5 {[%emt 0:02:05]} Bg4 {[%emt 0:02:25] B22: Sicilian: 2 c3} (8... e6 9. O-O Be7 10. Nbd2 O-O 11. Nc4 Qc7 12. Qc2 Bd7 13. Qe4 b5 14. Ne3 Ncb4 15. a3 Nxe3 16. Bxe3 {½-½ (65) Savic,M (2539)-Kovacevic,A (2571) Vrnjacka Banja 2013}) 9. O-O {[%emt 0:02:55]} e6 {[%emt 0:01:43]} 10. Qa4 {[%emt 0:03:32]} Bh5 {[%emt 0:05:14]} 11. Bg5 $146 {[%emt 0:15:18]} ({Predecessor:} 11. Nc3 Nxc3 12. bxc3 Be7 13. g4 Bg6 14. Bb5 O-O 15. Bxc6 bxc6 16. Nd4 {½-½ (59) Miethe,C (1712)-Scharlow,S (1776) Germany 2016}) 11... Qd7 {[%emt 0:02:39]} 12. Nbd2 {[%emt 0:02:18]} h6 {[%emt 0:08:55]} 13. Bh4 {[%emt 0:06:42]} Bb4 {[%emt 0:05:17]} 14. Rad1 {[%emt 0:13:27]} O-O {[%emt 0:05:13]} 15. Kh1 {[%emt 0:18:13]} Nxe5 {[%emt 0:08:14]} 16. Bb5 {[%emt 0:00:35]} Nc6 {[%emt 0:00:41]} 17. Ne4 {[%emt 0:06:20]} Qc7 {[%emt 0:15:28]} 18. Qb3 {[%emt 0:17:55]} Qf4 {[%emt 0:17:25]} 19. Bxc6 {[%emt 0:00:57]} bxc6 {[%emt 0:00:32]} 20. Rd4 {[%emt 0:00:43]} Qb8 {[%emt 0:03:17]} 21. Qc2 {[%emt 0:03:47]} Qb6 {[%emt 0:03:09]} 22. Rc4 {[%emt 0:00:15]} Bxf3 {[%emt 0:06:25]} 23. gxf3 {[%emt 0:01:48]} f5 {[%emt 0:01:47]} 24. Nc5 {[%emt 0:00:00]} Bxc5 {[%emt 0:00:18]} 25. Rxc5 {[%emt 0:00:00]} Rac8 {[%emt 0:00:18]} 26. Rc1 {[%emt 0:00:01]} Qc7 {[%emt 0:02:41]} 27. Rxc6 {[%emt 0:01:55]} Qxc6 {[%emt 0:00:05]} 28. Qxc6 {[%emt 0:00:01]} Rxc6 {[%emt 0:00:01]} 29. Rxc6 {[%emt 0:00:01]} g5 {[%emt 0:01:40]} 30. Rxe6 {[%emt 0:00:12]} Rf6 {[%emt 0:02:54]} 31. Re5 {[%emt 0:02:16]} Nb6 {[%emt 0:00:05]} 32. Bg3 {[%emt 0:00:38]} f4 {[%emt 0:00:05]} 33. Kg2 {[%emt 0:01:11]} fxg3 {[%emt 0:01:24]} 34. fxg3 {[%emt 0:00:06]} Rd6 {[%emt 0:00:28]} 35. Rb5 {[%emt 0:00:35]} Kf7 {[%emt 0:00:19]} 36. h4 {[%emt 0:00:18]} gxh4 {[%emt 0:00:20]} 37. gxh4 {[%emt 0:00:01]} a6 {[%emt 0:00:39]} 38. Rb4 {[%emt 0:01:24]} Nd5 {[%emt 0:00:27]} 39. Rb7+ {[%emt 0:00:24]} Kf6 {[%emt 0:00:15]} 40. Kg3 {[%emt 0:00:18]} Ne3 {[%emt 0:01:05]} 41. b4 {[%emt 0:03:57]} Nf5+ {[%emt 0:01:06]} 42. Kh3 {[%emt 0:02:38]} Ke5 {[%emt 0:02:50]} 43. b5 {[%emt 0:12:01]} axb5 {[%emt 0:00:47]} 44. Rxb5+ {[%emt 0:00:09]} Kf4 {[%emt 0:00:06]} 45. Rb3 {[%emt 0:00:53]} Ne3 {[%emt 0:01:19]} 46. Rb8 {[%emt 0:02:51]} Kxf3 {[%emt 0:02:49]} 47. Rf8+ {[%emt 0:00:08]} Ke4 {[%emt 0:00:07]} 48. a4 {[%emt 0:00:47]} Ra6 {[%emt 0:03:01]} 49. Re8+ {[%emt 0:02:00]} Kf4 {[%emt 0:00:18]} 50. Rf8+ {[%emt 0:00:03]} Nf5 {[%emt 0:00:07]} 51. Rg8 {[%emt 0:00:04]} Rc6 {[%emt 0:03:00]} 52. Rg4+ {[%emt 0:00:48]} Kf3 {[%emt 0:00:14]} 53. Rb4 {[%emt 0:01:12]} Rc1 {[%emt 0:00:49]} 54. Kh2 {[%emt 0:01:14]} Ne3 {[%emt 0:00:47]} 55. Rb3 {[%emt 0:02:40]} Ra1 {[%emt 0:00:41]} 56. Rd3 {[%emt 0:01:25]} Rxa4 {[%emt 0:00:07]} 57. Kh3 {[%emt 0:00:18]} Ra1 {[%emt 0:02:45]} 58. Kh2 {[%emt 0:00:03]} Rb1 {[%emt 0:00:47]} 59. Ra3 {[%emt 0:00:32]} h5 {[%emt 0:02:09]} 60. Rd3 {[%emt 0:00:24]} Rc1 {[%emt 0:00:26]} 61. Ra3 {[%emt 0:00:18]} Re1 {[%emt 0:00:58]} 62. Rb3 {[%emt 0:00:26]} Kf2 {[%emt 0:00:48]} 63. Rb2+ {[%emt 0:00:52]} Re2 {[%emt 0:00:15]} 64. Rxe2+ {[%emt 0:00:39]} Kxe2 {[%emt 0:00:06]} 65. Kg3 {[%emt 0:00:03]} Nd5 {[%emt 0:00:08]} 66. Kg2 {[%emt 0:00:12]} Ke3 {[%emt 0:00:20]} 67. Kg3 {[%emt 0:00:01]} Ne7 {[%emt 0:00:14]} 0-1

[Event "22nd Hoogeveen Open 2018"]
[Site "Hoogeveen"]
[Date "2018.10.20"]
[Round "1"]
[White "Husers, Yannic"]
[Black "Sparenberg, Erik"]
[Result "0-1"]
[ECO "C44"]
[WhiteElo "1866"]
[BlackElo "2224"]
[Annotator "NA"]
[PlyCount "78"]
[EventDate "2018.10.20"]
[EventType "swiss"]
[EventCountry "NED"]
[SourceTitle "playchess.com"]
[Source "ChessBase"]
[SourceQuality "1"]
[TimeControl "40/5400+30:1800+30"]

1. e4 {[%emt 0:00:00]} e5 {[%emt 0:00:00]} 2. Nf3 {[%emt 0:00:00]} Nc6 {[%emt 0:00:00]} 3. c3 {[%emt 0:00:00]} Nf6 {[%emt 0:00:00]} 4. d4 {[%emt 0:00:00]} d6 {[%emt 0:00:06]} 5. d5 {[%emt 0:00:44]} Nb8 {[%emt 0:01:01]} 6. Bd3 {[%emt 0:00:20]} Be7 {[%emt 0:00:21]} 7. O-O {[%emt 0:01:31]} O-O {[%emt 0:00:06]} 8. h3 {[%emt 0:01:48]} a5 {[%emt 0:05:31] C44: Ponziani Opening and Scotch Gambit} (8... Nbd7 9. Be3 Nh5 10. c4 {½-½ (10) Huemmer,B (2237)-Lorenz,G (2347) Germany 2002}) 9. a4 {[%emt 0:03:23]} Na6 {[%emt 0:00:45]} 10. Nbd2 $146 {[%emt 0:00:49]} ({Predecessor:} 10. Be3 c6 11. dxc6 bxc6 12. Nbd2 Nd7 13. Bc4 Nb6 14. Ba2 Kh8 15. b4 axb4 16. a5 {1-0 (42) Jahn,C (2175)-Naung,K Subotica 1991}) 10... c6 {[%emt 0:07:36]} 11. c4 {[%emt 0:07:18]} Nd7 {[%emt 0:06:09]} 12. g4 {[%emt 0:13:23]} Ndc5 {[%emt 0:03:52]} 13. Bb1 {[%emt 0:00:58]} Nb4 {[%emt 0:03:58]} 14. Ra3 {[%emt 0:10:56]} cxd5 {[%emt 0:08:32]} 15. exd5 {[%emt 0:13:50]} f5 {[%emt 0:07:42]} 16. Nh2 {[%emt 0:00:00]} Bg5 {[%emt 0:10:22]} 17. Ndf3 {[%emt 0:10:46]} Bxc1 {[%emt 0:01:35]} 18. Qxc1 {[%emt 0:00:08]} fxg4 {[%emt 0:06:20]} 19. hxg4 {[%emt 0:07:17]} Rf4 {[%emt 0:00:58]} 20. g5 {[%emt 0:02:40]} Bd7 {[%emt 0:07:25]} 21. Kh1 {[%emt 0:03:14]} Bxa4 {[%emt 0:02:28]} 22. Rc3 {[%emt 0:04:26]} Qe7 {[%emt 0:04:08]} 23. Ng1 $19 {[%emt 0:01:58]} Raf8 {[%emt 0:02:34]} 24. Nh3 {[%emt 0:00:23]} Rh4 {[%emt 0:02:08]} 25. Qe3 {[%emt 0:00:30]} Bd7 {[%emt 0:01:10]} 26. Ng1 {[%emt 0:03:20]} Rff4 {[%emt 0:01:44]} 27. Ngf3 {[%emt 0:03:37]} Rh3 {[%emt 0:00:37]} 28. Qd2 {[%emt 0:01:43]} Bg4 {[%emt 0:06:45]} 29. Kg2 {[%emt 0:02:34]} Qd7 {[%emt 0:02:25]} 30. Ng1 {[%emt 0:01:26]} Rh5 {[%emt 0:01:15]} 31. Rg3 {[%emt 0:00:23]} Bf5 {[%emt 0:01:17]} 32. Qd1 {[%emt 0:01:38]} g6 {[%emt 0:01:44]} 33. Bxf5 {[%emt 0:01:26]} Qxf5 {[%emt 0:00:11]} 34. Nh3 {[%emt 0:00:43]} Rd4 {[%emt 0:02:51]} 35. Qc1 {[%emt 0:01:58]} Nbd3 {[%emt 0:00:18]} 36. Qc3 {[%emt 0:00:52]} Rdh4 {[%emt 0:02:51]} 37. Qxa5 {[%emt 0:01:48]} Rxh3 {[%emt 0:00:18]} 38. Qd8+ {[%emt 0:00:03]} Kf7 {[%emt 0:00:39]} 39. Ng4 {[%emt 0:01:00]} Nf4+ {[%emt 0:00:34]} 0-1

[Event "22nd Hoogeveen Open 2018"]
[Site "Hoogeveen"]
[Date "2018.10.20"]
[Round "1"]
[White "Van der Hagen, Loek"]
[Black "Murray, David"]
[Result "1-0"]
[ECO "B48"]
[WhiteElo "1820"]
[BlackElo "2222"]
[Annotator "NA"]
[PlyCount "119"]
[EventDate "2018.10.20"]
[EventType "swiss"]
[EventCountry "NED"]
[SourceTitle "playchess.com"]
[Source "ChessBase"]
[SourceQuality "1"]
[TimeControl "40/5400+30:1800+30"]

1. e4 {[%emt 0:00:00]} c5 {[%emt 0:00:00]} 2. Nf3 {[%emt 0:00:00]} Nc6 {[%emt 0:00:00]} 3. d4 {[%emt 0:00:00]} cxd4 {[%emt 0:00:00]} 4. Nxd4 {[%emt 0:00:00]} Qc7 {[%emt 0:00:07]} 5. Nc3 {[%emt 0:01:03]} e6 {[%emt 0:00:08]} 6. Be3 {[%emt 0:00:45]} a6 {[%emt 0:00:10]} 7. Qd2 {[%emt 0:01:02]} Nf6 {[%emt 0:02:34]} 8. f3 {[%emt 0:00:44]} Bb4 {[%emt 0:00:32]} 9. O-O-O {[%emt 0:01:32]} O-O {[%emt 0:01:30] B48: Sicilian: Taimanov: 5 Nc3 Qc7 6 Be3 a6 without Be2} 10. g4 {[%emt 0:04:06]} b5 {[%emt 0:01:34]} 11. h4 {[%emt 0:03:02]} Nxd4 $146 {[%emt 0:06:04]} ({Predecessor:} 11... Ne5 12. a3 Be7 13. h5 b4 14. Na2 bxa3 15. b3 Bb7 16. g5 Ne8 17. Rg1 {0-1 (33) Kritz,L (2596)-Damljanovic,B (2608) Heraklio 2007}) 12. Qxd4 {[%emt 0:03:55]} Qa5 {[%emt 0:01:29]} 13. Kb1 {[%emt 0:06:02]} d6 {[%emt 0:03:32]} 14. h5 {[%emt 0:06:53]} Bb7 {[%emt 0:07:20]} 15. g5 {[%emt 0:07:05]} Nd7 {[%emt 0:04:11]} 16. g6 {[%emt 0:03:51]} e5 {[%emt 0:05:59]} 17. Qd2 {[%emt 0:05:13]} Rac8 {[%emt 0:07:07]} 18. h6 {[%emt 0:04:50]} fxg6 {[%emt 0:02:52]} 19. hxg7 {[%emt 0:00:45]} Rf7 {[%emt 0:06:40]} 20. Qh2 {[%emt 0:01:44]} Rxg7 {[%emt 0:02:25]} 21. Nd5 {[%emt 0:03:32]} Bxd5 {[%emt 0:02:23]} 22. exd5 {[%emt 0:03:46]} Nf8 {[%emt 0:13:04]} 23. Bd3 {[%emt 0:01:37]} Qc7 {[%emt 0:03:04]} 24. Bh6 {[%emt 0:03:45]} Rf7 {[%emt 0:05:17]} 25. Bxf8 {[%emt 0:01:55]} Kxf8 {[%emt 0:02:09]} 26. Bxg6 {[%emt 0:07:04]} hxg6 {[%emt 0:01:05]} 27. Qh8+ {[%emt 0:00:08]} Ke7 {[%emt 0:00:04]} 28. Qh4+ {[%emt 0:00:27]} Ke8 {[%emt 0:02:18]} 29. Qxb4 {[%emt 0:02:08]} Qxc2+ {[%emt 0:01:43]} 30. Ka1 {[%emt 0:00:08]} Kd7 {[%emt 0:02:46]} 31. Qa5 {[%emt 0:05:18]} Rxf3 {[%emt 0:11:05]} 32. Qxa6 {[%emt 0:05:40]} g5 {[%emt 0:00:40]} 33. Qxb5+ {[%emt 0:02:14]} Ke7 {[%emt 0:00:27]} 34. Rh7+ {[%emt 0:09:13]} Kf6 {[%emt 0:01:03]} 35. Rh6+ {[%emt 0:00:58]} Kf5 {[%emt 0:02:28]} 36. Qd7+ {[%emt 0:02:15]} Kf4 {[%emt 0:00:07]} 37. Rf6+ {[%emt 0:01:54]} Ke3 {[%emt 0:00:54]} 38. Rxf3+ {[%emt 0:01:00]} Kxf3 {[%emt 0:00:09]} 39. Qh3+ {[%emt 0:01:06]} Ke2 {[%emt 0:02:46]} 40. Qf1+ {[%emt 0:01:17]} Ke3 {[%emt 0:00:05]} 41. Qh3+ {[%emt 0:30:38]} Ke2 {[%emt 0:31:57]} 42. Qg4+ {[%emt 0:01:03]} Kf2 {[%emt 0:00:00]} 43. Qg1+ {[%emt 0:00:00]} Kf3 {[%emt 0:00:00]} 44. Rf1+ {[%emt 0:00:00]} Ke4 {[%emt 0:00:00]} 45. Qg4+ {[%emt 0:00:00]} Kxd5 {[%emt 0:00:00]} 46. Rd1+ {[%emt 0:00:00]} Qxd1+ {[%emt 0:00:00]} 47. Qxd1+ {[%emt 0:00:00]} Kc6 {[%emt 0:00:00]} 48. Qg4 {[%emt 0:00:00]} Rf8 {[%emt 0:00:00]} 49. a3 {[%emt 0:00:00]} Kd5 {[%emt 0:00:00]} 50. Qxg5 {[%emt 0:00:00]} Ke4 {[%emt 0:00:00]} 51. Qg6+ {[%emt 0:00:00]} Kd5 {[%emt 0:00:00]} 52. Kb1 {[%emt 0:00:00]} e4 {[%emt 0:00:00]} 53. Qg5+ {[%emt 0:00:00]} Kc4 {[%emt 0:00:00]} 54. Qc1+ {[%emt 0:00:00]} Kd4 {[%emt 0:00:00]} 55. Qd2+ {[%emt 0:00:00]} Ke5 {[%emt 0:00:00]} 56. Qc3+ {[%emt 0:00:00]} Ke6 {[%emt 0:00:00]} 57. a4 {[%emt 0:00:00]} d5 {[%emt 0:00:00]} 58. a5 $18 {[%emt 0:00:00]} Rd8 {[%emt 0:00:00]} 59. Qd4 {[%emt 0:00:00]} Rd6 {[%emt 0:00:00]} 60. b4 {[%emt 0:00:00]} 1-0

[Event "22nd Hoogeveen Open 2018"]
[Site "Hoogeveen"]
[Date "2018.10.21"]
[Round "2"]
[White "Beerdsen, Thomas"]
[Black "Blagojevic, Tijana"]
[Result "1-0"]
[ECO "C45"]
[WhiteElo "2460"]
[BlackElo "2232"]
[Annotator "ChessBase"]
[PlyCount "151"]
[EventDate "2018.10.20"]
[EventType "swiss"]
[EventCountry "NED"]
[SourceTitle "playchess.com"]
[Source "ChessBase"]
[SourceQuality "1"]
[TimeControl "40/5400+30:1800+30"]

1. e4 {[%emt 0:00:00]} e5 {[%emt 0:00:00]} 2. Nf3 {[%emt 0:00:00]} Nc6 {[%emt 0:00:00]} 3. d4 {[%emt 0:00:00]} exd4 {[%emt 0:00:00]} 4. Nxd4 {[%emt 0:00:00]} Nf6 {[%emt 0:00:00]} 5. Nxc6 {[%emt 0:00:00]} bxc6 {[%emt 0:00:00]} 6. e5 {[%emt 0:00:01]} Qe7 {[%emt 0:00:03]} 7. Qe2 {[%emt 0:00:05]} Nd5 {[%emt 0:00:05]} 8. h4 {[%emt 0:00:04]} g6 {[%emt 0:14:31]} 9. Bg5 {[%emt 0:04:41]} Qe6 {[%emt 0:01:50]} 10. c4 {[%emt 0:07:30]} Nb6 {[%emt 0:01:44]} 11. Bf6 {[%emt 0:04:58]} Rg8 {[%emt 0:00:20]} 12. Nd2 {[%emt 0:05:23]} d5 {[%emt 0:07:26]} 13. O-O-O {[%emt 0:17:34]} Nd7 {[%emt 0:06:15]} 14. Nb3 {[%emt 0:02:07]} Nxf6 {[%emt 0:07:45]} 15. Nd4 {[%emt 0:01:03]} Qg4 {[%emt 0:01:53]} 16. exf6+ {[%emt 0:00:19]} Qxe2 {[%emt 0:00:20]} 17. Bxe2 {[%emt 0:00:26]} c5 {[%emt 0:25:08]} 18. Nb5 {[%emt 0:01:27]} Bh6+ {[%emt 0:00:33]} 19. Kb1 {[%emt 0:03:37]} Bf5+ {[%emt 0:00:38]} 20. Ka1 {[%emt 0:01:29]} O-O-O {[%emt 0:00:21]} 21. Rxd5 {[%emt 0:05:06]} a6 {[%emt 0:13:39]} 22. Nc3 {[%emt 0:00:29]} Rge8 {[%emt 0:03:46]} 23. Bf3 {[%emt 0:01:40]} Bd2 {[%emt 0:06:44]} 24. Rd1 {[%emt 0:07:41]} Rxd5 {[%emt 0:01:29]} 25. Bxd5 {[%emt 0:02:14]} Bxc3 {[%emt 0:02:51]} 26. bxc3 {[%emt 0:00:06]} Re2 {[%emt 0:00:18]} 27. Bf3 {[%emt 0:06:06]} Rxf2 {[%emt 0:01:28]} 28. Re1 {[%emt 0:00:06]} h5 {[%emt 0:03:22]} 29. a4 {[%emt 0:09:28]} Bg4 {[%emt 0:00:11]} 30. Re8+ {[%emt 0:04:47]} Kd7 {[%emt 0:00:02]} 31. Re7+ {[%emt 0:00:06]} Kd6 {[%emt 0:00:05]} 32. Bxg4 {[%emt 0:00:21]} hxg4 {[%emt 0:00:06]} 33. Rxf7 {[%emt 0:00:06]} Rxg2 {[%emt 0:02:26]} 34. Rg7 {[%emt 0:00:06]} Ke6 {[%emt 0:00:11]} 35. Rxg6 {[%emt 0:00:29]} Kf7 {[%emt 0:00:02]} 36. h5 {[%emt 0:00:51]} g3 {[%emt 0:00:07]} 37. a5 {[%emt 0:00:49]} c6 {[%emt 0:00:04]} 38. Kb1 {[%emt 0:00:11]} Rg1+ {[%emt 0:02:06]} 39. Kb2 {[%emt 0:00:11]} Rg2+ {[%emt 0:00:04]} 40. Ka3 {[%emt 0:02:41]} Rg1 {[%emt 0:00:07]} 41. Kb3 {[%emt 0:30:24]} Rb1+ {[%emt 0:30:06]} 42. Kc2 {[%emt 0:02:10]} Rg1 {[%emt 0:00:05]} 43. Kd2 {[%emt 0:08:03]} g2 {[%emt 0:00:00]} 44. Ke3 {[%emt 0:00:00]} Rh1 {[%emt 0:00:00]} 45. Rxg2 {[%emt 0:00:00]} Rxh5 {[%emt 0:00:00]} 46. Rg7+ {[%emt 0:00:00]} Kxf6 {[%emt 0:00:00]} 47. Rc7 {[%emt 0:00:00]} Rh3+ {[%emt 0:00:00]} 48. Ke4 {[%emt 0:00:00]} Rh4+ {[%emt 0:00:00]} 49. Kd3 {[%emt 0:00:00]} Rh3+ {[%emt 0:00:00]} 50. Kc2 {[%emt 0:00:00]} Ke6 {[%emt 0:00:00]} 51. Rxc6+ {[%emt 0:00:00]} Kd7 {[%emt 0:00:00]} 52. Rxa6 {[%emt 0:00:00]} Kc7 {[%emt 0:00:00]} 53. Ra7+ {[%emt 0:00:00]} Kc6 {[%emt 0:00:00]} 54. Rg7 {[%emt 0:00:00]} Rh2+ {[%emt 0:00:00]} 55. Kb3 {[%emt 0:00:00]} Rh1 {[%emt 0:00:00]} 56. Rg6+ {[%emt 0:00:00]} Kb7 {[%emt 0:00:00]} 57. Ka4 {[%emt 0:00:00]} Rb1 {[%emt 0:00:00]} 58. a6+ {[%emt 0:00:00]} Ka7 {[%emt 0:00:00]} 59. Ka5 {[%emt 0:00:00]} Rb3 {[%emt 0:00:00]} 60. Rg7+ {[%emt 0:00:00]} Ka8 {[%emt 0:00:00]} 61. Rc7 {[%emt 0:00:00]} Ra3+ {[%emt 0:00:00]} 62. Kb6 {[%emt 0:00:00]} Rb3+ {[%emt 0:00:00]} 63. Kxc5 {[%emt 0:00:00]} Rxc3 {[%emt 0:00:04]} 64. Rh7 {[%emt 0:00:00]} Ra3 {[%emt 0:00:53]} 65. Rh6 {[%emt 0:02:09]} Ka7 {[%emt 0:00:59]} 66. Kd5 {[%emt 0:01:22]} Rd3+ {[%emt 0:00:10]} 67. Kc6 {[%emt 0:00:59]} Rg3 {[%emt 0:01:57]} 68. Rd6 {[%emt 0:06:27]} Kxa6 {[%emt 0:01:54]} 69. Kc7+ {[%emt 0:00:41]} Ka7 {[%emt 0:02:01]} 70. c5 {[%emt 0:00:09]} Rh3 {[%emt 0:03:18]} 71. c6 {[%emt 0:04:22]} Rh7+ {[%emt 0:01:39]} 72. Kc8 {[%emt 0:00:48]} Rh8+ {[%emt 0:01:18]} 73. Rd8 {[%emt 0:00:12]} Rh6 {[%emt 0:00:57]} 74. c7 {[%emt 0:00:06]} Rh7 {[%emt 0:00:22]} 75. Rd1 {[%emt 0:01:24]} Kb6 {[%emt 0:01:49]} 76. Kb8 {[%emt 0:00:10]} 1-0